bitfinex-derivatives/quotes_BTCF0:USTF0_20241023
["timestamp","ask_amount","ask_price","bid_price","bid_amount"]
[1729691701060,0.074983,66727.0,66726.0,0.074981]
[1729691701255,0.074981,66727.0,66726.0,0.07498]
[1729691707464,0.0634,66736.0,66725.0,0.26076]
[1729691707465,0.074976,66732.0,66731.0,0.074974]
[1729691707645,0.074971,66737.0,66736.0,0.074968]
[1729691708655,0.074969,66740.0,66739.0,0.074965]
[1729691709759,0.074969,66737.0,66736.0,0.02766965]
[1729691709958,0.17,66737.0,66734.0,0.04455107]
[1729691710166,0.074971,66735.0,66734.0,0.04455107]
[1729691710458,0.074971,66735.0,66726.0,0.0624]
[1729691710459,0.074974,66733.0,66732.0,0.074974]
[1729691710664,0.074974,66733.0,66732.0,0.1195476]
[1729691710868,0.074974,66733.0,66732.0,0.074974]
[1729691711052,0.26,66736.0,66735.0,0.074967]
[1729691711053,0.074971,66736.0,66735.0,0.074967]
[1729691711455,0.074967,66739.0,66738.0,0.074964]
[1729691711764,0.074967,66739.0,66738.0,0.11952499]
[1729691711972,0.074953,66754.0,66753.0,0.074949]
[1729691713353,0.074953,66754.0,66753.0,0.11948963]
[1729691713562,0.074953,66754.0,66753.0,0.11943604]
[1729691713760,0.074953,66754.0,66753.0,0.074949]
[1729691714150,0.074947,66757.0,66750.0,0.074954]
[1729691714355,0.074947,66757.0,66755.0,0.074948]
[1729691714554,0.074947,66757.0,66749.0,0.26]
[1729691714766,0.074947,66757.0,66756.0,0.074948]
[1729691716762,0.074952,66754.0,66753.0,0.074951]
[1729691717565,0.074955,66751.0,66750.0,0.074954]
[1729691720682,0.26,66752.0,66749.0,0.02739718]
[1729691720872,0.0644,66750.0,66748.0,0.074956]
[1729691721064,0.074956,66749.0,66748.0,0.074956]
[1729691721774,0.074961,66745.0,66744.0,0.07496]
[1729691721970,0.074961,66745.0,66744.0,0.07964774]
[1729691722268,0.074957,66748.0,66747.0,0.074956]
[1729691722662,0.0609,66759.0,66744.0,0.26]
[1729691722858,0.07495,66755.0,66754.0,0.074948]
[1729691723058,0.13494749,66755.0,66754.0,0.074948]
[1729691723261,0.05999749,66755.0,66754.0,0.074948]
[1729691723462,0.0608,66762.0,66754.0,0.074948]
[1729691723463,0.0608,66762.0,66754.0,0.27218574]
[1729691723768,0.135741,66762.0,66761.0,0.074942]
[1729691724093,0.19567913,66762.0,66761.0,0.074942]
[1729691724262,0.135741,66762.0,66761.0,0.074942]
[1729691724774,0.135741,66762.0,66761.0,0.0769957]
[1729691725362,0.074941,66762.0,66761.0,0.0769957]
[1729691726675,0.06208,66770.0,66764.0,0.074937]
[1729691726875,0.074932,66770.0,66769.0,0.074933]
[1729691727774,0.074932,66770.0,66769.0,0.0769867]
[1729691729577,0.074932,66770.0,66769.0,0.07903981]
[1729691730076,0.074932,66770.0,66769.0,0.00410681]
[1729691730280,0.244932,66770.0,66769.0,0.00410681]
[1729691731375,0.244932,66770.0,66769.0,0.03152051]
[1729691731570,0.244932,66770.0,66769.0,0.00410681]
[1729691732880,0.694252,66770.0,66769.0,0.00410681]
[1729691733290,0.824572,66770.0,66769.0,0.00410681]
[1729691733491,0.824572,66770.0,66757.0,0.074946]
[1729691733692,0.244946,66758.0,66757.0,0.10149899]
[1729691733880,0.244946,66758.0,66757.0,0.02655299]
[1729691734184,0.074949,66755.0,66754.0,0.074949]
[1729691735787,0.074949,66755.0,66751.0,0.02645851]
[1729691736097,0.074952,66753.0,66752.0,0.074949]
[1729691737485,0.07495,66756.0,66755.0,0.074947]
[1729691737787,0.07495,66756.0,66755.0,0.244947]
[1729691738597,0.17,66774.0,66758.0,0.074942]
[1729691738892,0.17,66774.0,66764.0,0.074939]
[1729691738893,0.074941,66765.0,66764.0,0.074939]
[1729691739079,0.074929,66773.0,66764.0,0.244939]
[1729691739388,0.074936,66769.0,66768.0,0.074932]
[1729691742092,0.074936,66769.0,66768.0,0.10235619]
[1729691742993,0.17,66785.0,66768.0,0.64674419]
[1729691743194,0.074923,66781.0,66780.0,0.074917]
[1729691743889,0.17,66785.0,66779.0,0.17]
[1729691744084,0.074921,66780.0,66779.0,0.17]
[1729691744400,0.17,66785.0,66778.0,0.074923]
[1729691744694,0.074922,66779.0,66778.0,0.074923]
[1729691745094,0.17,66782.0,66775.0,0.074926]
[1729691745095,0.074927,66776.0,66775.0,0.074926]
[1729691747896,0.074922,66780.0,66779.0,0.07492]
[1729691748999,0.13028,66789.0,66779.0,0.07492]
[1729691749000,0.24610401,66795.0,66779.0,0.17]
[1729691749299,0.074913,66789.0,66788.0,0.07491]
[1729691751090,0.074913,66789.0,66788.0,0.10256043]
[1729691751491,0.074913,66789.0,66788.0,0.02765043]
[1729691751786,0.074914,66786.0,66785.0,0.02244231]
[1729691752000,0.074914,66786.0,66785.0,0.074913]
[1729691752001,0.074916,66786.0,66785.0,0.074913]
[1729691754295,0.074919,66783.0,66782.0,0.074917]
[1729691754491,0.074919,66783.0,66782.0,0.07960211]
[1729691754895,0.074919,66783.0,66782.0,0.07960213]
[1729691755607,0.074919,66783.0,66782.0,0.074917]
[1729691756104,0.074919,66783.0,66782.0,0.07960213]
[1729691757103,0.074919,66783.0,66782.0,0.074917]
[1729691757402,0.074919,66783.0,66782.0,0.07960215]
[1729691758804,0.074919,66783.0,66782.0,0.074917]
[1729691759005,0.074919,66783.0,66782.0,0.08709839]
[1729691759203,0.074919,66783.0,66782.0,0.074917]
[1729691759401,0.074919,66783.0,66782.0,0.08709832]
[1729691760702,0.074919,66783.0,66782.0,0.074917]
[1729691762407,0.074923,66780.0,66779.0,0.07492]
[1729691762605,0.074923,66780.0,66779.0,0.00468539]
[1729691762803,0.074923,66780.0,66779.0,0.074922]
[1729691763805,0.074923,66780.0,66777.0,0.02658939]
[1729691763806,0.074923,66778.0,66777.0,0.02658939]
[1729691764002,0.074923,66778.0,66769.0,0.04435196]
[1729691764003,0.17,66778.0,66768.0,0.00224618]
[1729691764204,0.1205,66779.0,66768.0,0.00224618]
[1729691764205,0.074933,66769.0,66768.0,0.00224618]
[1729691764409,0.074933,66769.0,66768.0,0.02964245]
[1729691764608,0.074933,66769.0,66768.0,0.00224618]
[1729691764801,0.074933,66769.0,66768.0,0.07718018]
[1729691765303,0.074929,66775.0,66774.0,0.074927]
[1729691765808,0.244929,66775.0,66774.0,0.074927]
[1729691766405,0.074932,66771.0,66770.0,0.074931]
[1729691767008,0.074932,66771.0,66770.0,0.11934841]
[1729691767215,0.074932,66771.0,66770.0,0.11934809]
[1729691767519,0.074932,66771.0,66770.0,0.074931]
[1729691767720,0.074927,66777.0,66776.0,0.074923]
[1729691767927,0.00120001,66786.0,66776.0,0.24960842]
[1729691768219,0.074911,66790.0,66784.0,0.074915]
[1729691768220,0.074918,66785.0,66784.0,0.074915]
[1729691768422,0.074918,66785.0,66784.0,0.1193397]
[1729691768616,0.074918,66785.0,66784.0,0.074915]
[1729691770518,0.074918,66785.0,66784.0,0.13416264]
[1729691770918,0.074918,66785.0,66784.0,0.074915]
[1729691771527,0.074918,66785.0,66784.0,0.10232321]
[1729691771722,0.074918,66785.0,66784.0,0.16157085]
[1729691772227,0.074918,66785.0,66784.0,0.02740821]
[1729691772427,0.17,66787.0,66783.0,0.05924764]
[1729691772428,0.074916,66784.0,66783.0,0.13416564]
[1729691773028,0.074916,66784.0,66783.0,0.074918]
[1729691773221,0.074918,66783.0,66782.0,0.05924764]
[1729691774231,0.07492,66781.0,66779.0,0.074922]
[1729691774424,0.244921,66780.0,66779.0,0.074922]
[1729691776331,0.17,66780.0,66777.0,0.0272607]
[1729691776532,0.074923,66778.0,66777.0,0.074924]
[1729691779026,0.17,66783.0,66779.0,0.074922]
[1729691779226,0.244921,66780.0,66779.0,0.074922]
[1729691780032,0.07493,66773.0,66768.0,0.044474]
[1729691780227,0.074922,66779.0,66765.0,0.06149413]
[1729691780228,0.074937,66766.0,66765.0,0.07718249]
[1729691780430,0.074937,66766.0,66765.0,0.01443022]
[1729691780730,0.074937,66766.0,66765.0,0.07718449]
[1729691780929,0.074937,66766.0,66765.0,0.10465569]
[1729691781125,0.0637,66772.0,66767.0,0.074933]
[1729691781126,0.074937,66768.0,66767.0,0.074933]
[1729691781328,0.074937,66768.0,66767.0,0.08711668]
[1729691784931,0.17,66782.0,66768.0,0.074934]
[1729691785128,0.074924,66777.0,66773.0,0.05929806]
[1729691785335,0.074924,66777.0,66776.0,0.074925]
[1729691785630,0.074927,66775.0,66774.0,0.05929806]
[1729691785829,0.244927,66775.0,66774.0,0.05929806]
[1729691786134,0.244927,66775.0,66774.0,0.13422606]
[1729691786330,0.244927,66775.0,66774.0,0.13422146]
[1729691786533,0.17,66778.0,66773.0,0.05929346]
[1729691786834,0.0645,66786.0,66771.0,0.17]
[1729691786835,0.17,66784.0,66783.0,0.074916]
[1729691787224,0.244918,66784.0,66783.0,0.074916]
[1729691787725,0.07492,66781.0,66780.0,0.07492]
[1729691788231,0.074915,66786.0,66781.0,0.07492]
[1729691788419,0.1265,66797.0,66785.0,0.13418962]
[1729691788622,0.137711,66790.0,66789.0,0.244911]
[1729691789040,0.0628,66790.0,66789.0,0.244911]
[1729691789241,0.13771,66790.0,66789.0,0.244911]
[1729691789428,0.07491,66790.0,66789.0,0.244911]
[1729691789835,0.07491,66790.0,66789.0,0.074911]
[1729691790361,0.074918,66783.0,66782.0,0.074915]
[1729691791431,0.074918,66783.0,66782.0,0.07959987]
[1729691791735,0.074918,66783.0,66782.0,0.074915]
[1729691792038,0.074923,66778.0,66777.0,0.074922]
[1729691792230,0.244923,66778.0,66777.0,0.08710394]
[1729691792938,0.074923,66778.0,66777.0,0.08710394]
[1729691793135,0.244923,66778.0,66777.0,0.08710394]
[1729691794644,0.244923,66778.0,66777.0,0.074922]
[1729691794836,0.074923,66778.0,66777.0,0.08241874]
[1729691795139,0.074923,66778.0,66777.0,0.0871042]
[1729691796144,0.07492,66781.0,66780.0,0.07492]
[1729691797932,0.07492,66781.0,66772.0,0.17543189]
[1729691797933,0.074921,66780.0,66772.0,0.02640507]
[1729691798134,0.074925,66776.0,66775.0,0.04445917]
[1729691798333,0.139121,66780.0,66770.0,0.074932]
[1729691798334,0.074924,66777.0,66774.0,0.04445917]
[1729691798640,0.074928,66774.0,66773.0,0.04445917]
[1729691798834,0.074928,66774.0,66770.0,0.0592728]
[1729691799030,0.0629,66773.0,66769.0,0.0592728]
[1729691799233,0.244932,66770.0,66769.0,0.13422681]
[1729691799434,0.244932,66770.0,66769.0,0.14640932]
[1729691799837,0.244932,66770.0,66769.0,0.1464096]
[1729691800142,0.244932,66770.0,66769.0,0.074932]
[1729691800339,0.074931,66773.0,66772.0,0.074928]
[1729691800550,0.074925,66779.0,66778.0,0.074922]
[1729691804436,0.074925,66779.0,66778.0,0.10218845]
[1729691804642,0.074925,66779.0,66778.0,0.02726645]
[1729691804843,0.2342,66780.0,66769.0,0.04446953]
[1729691805043,0.244932,66770.0,66769.0,0.14640986]
[1729691805248,0.244932,66770.0,66769.0,0.11412369]
[1729691805648,0.244932,66770.0,66769.0,0.11412372]
[1729691806034,0.244932,66770.0,66769.0,0.10194033]
[1729691806236,0.244932,66770.0,66769.0,0.11412382]
[1729691806443,0.244932,66770.0,66769.0,0.11412393]
[1729691806631,0.244932,66770.0,66769.0,0.10194033]
[1729691806943,0.244932,66770.0,66769.0,0.11412388]
[1729691811233,0.244932,66770.0,66769.0,0.03919088]
[1729691811435,0.244932,66770.0,66769.0,0.02700733]
[1729691811738,0.244932,66770.0,66764.0,0.074938]
[1729691811739,0.074937,66766.0,66765.0,0.05931571]
[1729691811942,0.17,66766.0,66764.0,0.074938]
[1729691812143,0.17,66766.0,66764.0,0.10220089]
[1729691812348,0.244937,66766.0,66765.0,0.074938]
[1729691812545,0.244937,66766.0,66765.0,0.1342481]
[1729691812746,0.244937,66766.0,66765.0,0.074938]
[1729691814048,0.074933,66770.0,66765.0,0.11398524]
[1729691814241,0.244926,66777.0,66776.0,0.074925]
[1729691814443,0.244926,66777.0,66776.0,0.11939648]
[1729691814638,0.244926,66777.0,66776.0,0.074925]
[1729691814843,0.244926,66777.0,66776.0,0.13422031]
[1729691815039,0.17,66784.0,66776.0,0.074925]
[1729691815345,0.074914,66786.0,66785.0,0.074915]
[1729691817745,0.074914,66786.0,66785.0,0.08709546]
[1729691817945,0.074914,66786.0,66785.0,0.074915]
[1729691818145,0.074914,66786.0,66785.0,0.10187215]
[1729691818542,0.074914,66786.0,66785.0,0.14630231]
[1729691821056,0.074914,66786.0,66785.0,0.10187215]
[1729691821262,0.074914,66786.0,66785.0,0.11405316]
[1729691821765,0.074914,66786.0,66785.0,0.17328735]
[1729691822353,0.074914,66786.0,66785.0,0.11405316]
[1729691823056,0.074914,66786.0,66785.0,0.1462901]
[1729691823256,0.074914,66786.0,66785.0,0.10187215]
[1729691823661,0.17,66787.0,66785.0,0.02695715]
[1729691823857,0.244913,66787.0,66786.0,0.074914]
[1729691825157,0.244913,66787.0,66786.0,0.11933195]
[1729691825361,0.244913,66787.0,66786.0,0.074914]
[1729691828562,0.17,66794.0,66793.0,0.074906]
[1729691828872,0.244906,66794.0,66793.0,0.074906]
[1729691829559,0.244906,66794.0,66793.0,0.08708493]
[1729691829767,0.07491,66790.0,66789.0,0.07491]
[1729691829967,0.24491,66790.0,66789.0,0.08708978]
[1729691830166,0.24491,66790.0,66789.0,0.07959459]
[1729691830558,0.24491,66790.0,66789.0,0.10665546]
[1729691830765,0.17,66790.0,66789.0,0.10665546]
[1729691831452,0.24491,66790.0,66789.0,0.10665546]
[1729691831764,0.17,66790.0,66789.0,0.10665546]
[1729691832556,0.24491,66790.0,66789.0,0.10665546]
[1729691832757,0.24491,66790.0,66789.0,0.03174546]
[1729691833057,0.24491,66790.0,66789.0,0.02706096]
[1729691833263,0.17,66790.0,66780.0,0.1291]
[1729691833471,0.074905,66795.0,66781.0,0.07960282]
[1729691833472,0.07492,66782.0,66781.0,0.07960282]
[1729691834461,0.24492,66782.0,66781.0,0.07960282]
[1729691835669,0.24492,66782.0,66781.0,0.00468482]
[1729691835862,0.07492,66781.0,66780.0,0.02710251]
[1729691836065,0.13732,66781.0,66776.0,0.074925]
[1729691836363,0.244924,66777.0,66776.0,0.074925]
[1729691836568,0.244924,66777.0,66776.0,0.10190879]
[1729691837164,0.244924,66777.0,66776.0,0.02698379]
[1729691837365,0.074927,66775.0,66774.0,0.074927]
[1729691838787,0.074927,66775.0,66771.0,0.02673017]
[1729691838966,0.074927,66775.0,66762.0,0.00224652]
[1729691838967,0.24493,66772.0,66768.0,0.04436067]
[1729691839166,0.24493,66772.0,66766.0,0.074936]
[1729691839167,0.074935,66767.0,66766.0,0.074936]
[1729691839370,0.074935,66767.0,66766.0,0.07962227]
[1729691839371,0.244935,66767.0,66766.0,0.07962227]
[1729691839563,0.244935,66767.0,66766.0,0.00468627]
[1729691839769,0.07494,66765.0,66764.0,0.074937]
[1729691840098,0.17,66765.0,66764.0,0.074937]
[1729691840372,0.17,66765.0,66764.0,0.07962345]
[1729691840565,0.244938,66765.0,66764.0,0.07962345]
[1729691840765,0.244938,66765.0,66764.0,0.07962545]
[1729691840965,0.244938,66765.0,66764.0,0.074939]
[1729691842375,0.17,66765.0,66764.0,0.074939]
[1729691842571,0.244938,66765.0,66764.0,0.07962546]
[1729691843170,0.244938,66765.0,66764.0,0.08712375]
[1729691843680,0.244938,66765.0,66764.0,0.074939]
[1729691844075,0.07494,66763.0,66762.0,0.02902814]
[1729691844471,0.07494,66763.0,66753.0,0.074951]
[1729691844472,0.61936,66763.0,66753.0,0.074951]
[1729691844674,0.61936,66763.0,66750.0,0.074954]
[1729691844675,0.074957,66751.0,66750.0,0.074954]
[1729691844872,0.074959,66746.0,66740.0,0.04436067]
[1729691845068,0.17,66742.0,66739.0,0.10396067]
[1729691845272,0.17,66742.0,66741.0,0.08715184]
[1729691845470,0.244964,66742.0,66741.0,0.08715184]
[1729691845770,0.17,66742.0,66741.0,0.08715184]
[1729691845975,0.17,66742.0,66741.0,0.1139409]
[1729691846301,0.17,66742.0,66741.0,0.0389769]
[1729691846582,0.17,66742.0,66741.0,0.02678906]
[1729691846874,0.17,66742.0,66737.0,0.074969]
[1729691847180,0.17,66738.0,66737.0,0.10150161]
[1729691847480,0.17,66738.0,66737.0,0.10618979]
[1729691847878,0.17,66738.0,66737.0,0.02653261]
[1729691848079,0.17,66738.0,66737.0,0.00468818]
[1729691848571,0.17,66738.0,66737.0,0.074969]
[1729691848771,0.17,66738.0,66727.0,0.1873]
[1729691848772,0.17,66738.0,66732.0,0.04436067]
[1729691849072,0.0638,66750.0,66732.0,0.04436067]
[1729691849073,0.17,66733.0,66732.0,0.074975]
[1729691849381,0.17,66733.0,66732.0,0.10628251]
[1729691849580,0.61956,66733.0,66727.0,0.04436067]
[1729691849774,0.17,66728.0,66727.0,0.07498]
[1729691849974,0.17,66728.0,66727.0,0.10257349]
[1729691851267,0.17,66728.0,66725.0,0.074982]
[1729691851474,0.17,66726.0,66725.0,0.074982]
[1729691853684,0.17,66726.0,66725.0,0.10188442]
[1729691856579,0.17,66733.0,66732.0,0.074975]
[1729691858881,0.244974,66733.0,66732.0,0.074975]
[1729691859080,0.17,66733.0,66722.0,0.074985]
[1729691859276,0.17,66723.0,66722.0,0.074986]
[1729691859690,0.17,66723.0,66722.0,0.10210474]
[1729691863689,0.244985,66723.0,66722.0,0.10210474]
[1729691864581,0.17,66723.0,66722.0,0.10210474]
[1729691864978,0.244985,66723.0,66722.0,0.10210474]
[1729691869491,0.074983,66725.0,66724.0,0.074984]
[1729691877301,0.17,66729.0,66724.0,0.11934467]
[1729691877492,0.17,66729.0,66728.0,0.11933967]
[1729691878201,0.244978,66729.0,66728.0,0.11956966]
[1729691878403,0.17,66729.0,66728.0,0.074979]
[1729691879690,0.3029391,66729.0,66728.0,0.074979]
[1729691880299,0.30287352,66729.0,66728.0,0.074979]
[1729691880501,0.244978,66729.0,66728.0,0.074979]
[1729691882902,0.17,66729.0,66728.0,0.074979]
[1729691883401,0.244978,66729.0,66728.0,0.074979]
[1729691884200,0.17,66729.0,66728.0,0.074979]
[1729691884697,0.244978,66729.0,66728.0,0.074979]
[1729691885600,0.17,66733.0,66728.0,0.074979]
[1729691885799,0.074971,66738.0,66737.0,0.074968]
[1729691886008,0.13335802,66738.0,66732.0,0.17]
[1729691886307,0.17,66743.0,66737.0,0.074968]
[1729691886505,0.137055,66750.0,66739.0,0.074965]
[1729691886506,0.244966,66740.0,66739.0,0.074965]
[1729691886999,0.244966,66740.0,66739.0,0.11957621]
[1729691887205,0.244966,66740.0,66739.0,0.074965]
[1729691889697,0.244966,66740.0,66739.0,0.10236853]
[1729691891401,0.244966,66740.0,66739.0,0.14697974]
[1729691891710,0.414966,66740.0,66739.0,0.02740353]
[1729691892009,0.414966,66740.0,66736.0,0.05923419]
[1729691892010,0.074969,66737.0,66736.0,0.05923419]
[1729691892200,0.07497,66736.0,66735.0,0.13420519]
[1729691892400,0.07497,66736.0,66735.0,0.074971]
[1729691894507,0.074977,66733.0,66732.0,0.074975]
[1729691894810,0.244977,66733.0,66732.0,0.074975]
[1729691896609,0.074977,66730.0,66729.0,0.10144971]
[1729691896812,0.244977,66730.0,66729.0,0.10613867]
[1729691897010,0.17,66737.0,66729.0,0.27144971]
[1729691897219,0.244972,66737.0,66736.0,0.07497]
[1729691898707,0.074966,66740.0,66739.0,0.074967]
[1729691898910,0.074959,66747.0,66746.0,0.074957]
[1729691899113,0.17,66749.0,66742.0,0.17]
[1729691899306,0.244957,66749.0,66748.0,0.074957]
[1729691900019,0.117,66755.0,66751.0,0.07495]
[1729691900020,0.074953,66752.0,66751.0,0.07495]
[1729691900811,0.24495,66755.0,66754.0,0.07495]
[1729691901009,0.17120001,66765.0,66757.0,0.074947]
[1729691901217,0.07495,66757.0,66756.0,0.074947]
[1729691901423,0.24495,66757.0,66756.0,0.074947]
[1729691902019,0.074942,66761.0,66756.0,0.244947]
[1729691902315,0.074942,66761.0,66760.0,0.074943]
[1729691902514,0.244942,66761.0,66760.0,0.074943]
[1729691907620,0.244942,66761.0,66760.0,0.10171389]
[1729691911020,0.17,66787.0,66761.0,0.44936]
[1729691911320,0.2345,66790.0,66783.0,0.17]
[1729691911629,0.074902,66797.0,66789.0,0.17]
[1729691911827,0.074905,66795.0,66793.0,0.074906]
[1729691912022,0.074905,66794.0,66793.0,0.17]
[1729691912217,0.17,66801.0,66793.0,0.17]
[1729691912424,0.074903,66796.0,66790.0,0.17]
[1729691912614,0.074903,66796.0,66792.0,0.074907]
[1729691912818,0.17,66798.0,66790.0,0.17]
[1729691913111,0.17,66798.0,66793.0,0.074906]
[1729691913112,0.074903,66797.0,66793.0,0.074906]
[1729691913316,0.17,66798.0,66790.0,0.17]
[1729691913515,0.17,66798.0,66780.0,0.10188884]
[1729691913516,0.17,66801.0,66794.0,0.17]
[1729691913718,0.063,66803.0,66800.0,0.17]
[1729691914024,0.0612,66810.0,66800.0,0.17]
[1729691914324,0.0612,66810.0,66807.0,0.07489]
[1729691914531,0.136087,66810.0,66807.0,0.07489]
[1729691915021,0.074887,66810.0,66807.0,0.07489]
[1729691915229,0.074883,66814.0,66810.0,0.074886]
[1729691915421,0.074883,66814.0,66807.0,0.17]
[1729691915422,0.074883,66814.0,66811.0,0.074886]
[1729691915818,0.0628,66819.0,66811.0,0.17]
[1729691916032,0.17,66820.0,66813.0,0.074884]
[1729691916331,0.17,66820.0,66812.0,0.17]
[1729691916632,0.17,66816.0,66815.0,0.074882]
[1729691918227,0.17,66816.0,66815.0,0.10245435]
[1729691920026,0.17,66819.0,66818.0,0.074878]
[1729691923730,0.244877,66819.0,66818.0,0.074878]
[1729691925030,0.17,66819.0,66818.0,0.074878]
[1729691928931,0.244877,66819.0,66818.0,0.074878]
[1729691929126,0.244877,66819.0,66815.0,0.10245435]
[1729691929127,0.074881,66816.0,66815.0,0.10245435]
[1729691929328,0.244881,66816.0,66815.0,0.074882]
[1729691930238,0.125,66818.0,66812.0,0.17]
[1729691930440,0.125,66818.0,66817.0,0.074879]
[1729691930826,0.116,66827.0,66811.0,0.074886]
[1729691930827,0.17,66831.0,66818.0,0.074878]
[1729691931130,0.116,66833.0,66818.0,0.074878]
[1729691931131,0.244869,66828.0,66827.0,0.074867]
[1729691931434,0.074872,66824.0,66823.0,0.074871]
[1729691931636,0.244872,66824.0,66823.0,0.074871]
[1729691932632,0.17,66824.0,66823.0,0.074871]
[1729691933738,0.244872,66824.0,66823.0,0.074871]
[1729691934039,0.17,66827.0,66823.0,0.074871]
[1729691934240,0.244868,66827.0,66826.0,0.074867]
[1729691934436,0.17,66827.0,66826.0,0.074867]
[1729691935337,0.135257,66837.0,66834.0,0.074859]
[1729691935338,0.0604,66837.0,66834.0,0.074859]
[1729691935544,0.0604,66837.0,66819.0,0.0653]
[1729691935545,0.135257,66837.0,66836.0,0.074858]
[1729691935841,0.305257,66837.0,66836.0,0.074858]
[1729691936249,0.24485,66844.0,66836.0,0.244858]
[1729691936544,0.24485,66844.0,66843.0,0.07485]
[1729691937333,0.17,66844.0,66843.0,0.07485]
[1729691938132,0.244849,66844.0,66843.0,0.07485]
[1729691939036,0.244849,66844.0,66843.0,0.10116801]
[1729691939841,0.074849,66844.0,66843.0,0.10116801]
[1729691940040,0.244849,66844.0,66843.0,0.10116801]
[1729691940433,0.074853,66841.0,66830.0,0.074865]
[1729691940745,0.074853,66841.0,66821.0,0.05911639]
[1729691940746,0.17,66832.0,66831.0,0.074864]
[1729691941138,0.244863,66832.0,66831.0,0.074864]
[1729691941542,0.244863,66832.0,66825.0,0.02638003]
[1729691941738,0.244856,66838.0,66825.0,0.074869]
[1729691941739,0.17,66826.0,66825.0,0.074869]
[1729691941938,0.244869,66826.0,66825.0,0.074869]
[1729691942642,0.17,66826.0,66825.0,0.074869]
[1729691943242,0.244869,66826.0,66825.0,0.074869]
[1729691947545,0.074865,66830.0,66825.0,0.244869]
[1729691947750,0.1243,66831.0,66830.0,0.074865]
[1729691948945,0.17,66843.0,66830.0,0.074865]
[1729691949250,0.17,66843.0,66824.0,0.0625]
[1729691949251,0.308152,66843.0,66842.0,0.074851]
[1729691950941,0.074861,66835.0,66834.0,0.074858]
[1729691954351,0.17,66837.0,66836.0,0.074858]
[1729691954650,0.244857,66837.0,66836.0,0.074858]
[1729691954850,0.074857,66837.0,66836.0,0.074858]
[1729691955450,0.244857,66837.0,66836.0,0.074858]
[1729691957154,0.074859,66835.0,66834.0,0.04433729]
[1729691957452,0.074859,66835.0,66834.0,0.11919729]
[1729691958248,0.074859,66835.0,66834.0,0.07486]
[1729691960446,0.074859,66835.0,66832.0,0.02651863]
[1729691960646,0.074859,66835.0,66829.0,0.13398139]
[1729691960647,0.074864,66831.0,66829.0,0.13398139]
[1729691960848,0.2302,66830.0,66829.0,0.074865]
[1729691961058,0.305065,66830.0,66829.0,0.0443893]
[1729691961761,0.305065,66830.0,66829.0,0.04439636]
[1729691962258,0.305065,66830.0,66820.0,0.10260561]
[1729691962259,0.074866,66829.0,66824.0,0.07402039]
[1729691962453,0.074872,66824.0,66823.0,0.14889239]
[1729691962648,0.074872,66824.0,66823.0,0.23611018]
[1729691962848,0.074872,66824.0,66823.0,0.074872]
[1729691963249,0.074872,66824.0,66822.0,0.07402039]
[1729691963465,0.17,66825.0,66820.0,0.10303965]
[1729691963758,0.414875,66821.0,66820.0,0.06147532]
[1729691963967,0.45596,66821.0,66813.0,0.05923075]
[1729691964160,0.074878,66818.0,66817.0,0.044439]
[1729691964351,0.074878,66818.0,66815.0,0.044439]
[1729691964553,0.074882,66815.0,66813.0,0.044439]
[1729691964760,0.244883,66814.0,66813.0,0.119323]
[1729691964960,0.074883,66814.0,66813.0,0.074884]
[1729691965156,0.074883,66814.0,66813.0,0.13411475]
[1729691965656,0.074883,66814.0,66813.0,0.074884]
[1729691965657,0.244883,66814.0,66813.0,0.074884]
[1729691970554,0.074886,66811.0,66810.0,0.13411775]
[1729691971051,0.074886,66811.0,66810.0,0.074887]
[1729691972455,0.244883,66814.0,66813.0,0.074884]
[1729691982268,0.074883,66814.0,66813.0,0.074884]
[1729691982574,0.074883,66814.0,66813.0,0.25531475]
[1729691982879,0.244883,66814.0,66813.0,0.25531475]
[1729691983269,0.074878,66819.0,66813.0,0.25531475]
[1729691983577,0.074878,66819.0,66818.0,0.074878]
[1729691984163,0.244874,66824.0,66823.0,0.074873]
[1729691984363,0.244874,66824.0,66823.0,0.11921892]
[1729691984564,0.244874,66824.0,66823.0,0.074873]
[1729691987070,0.074867,66831.0,66830.0,0.074864]
[1729691988776,0.074867,66831.0,66830.0,0.10186033]
[1729691989974,0.074867,66831.0,66830.0,0.02699633]
[1729691990176,0.074867,66831.0,66825.0,0.04434592]
[1729691990372,0.244869,66826.0,66825.0,0.11921492]
[1729691990568,0.244869,66826.0,66825.0,0.074869]
[1729691990774,0.244869,66826.0,66825.0,0.10136365]
[1729691991574,0.19432285,66903.0,66825.0,0.25562254]
[1729691991575,0.074848,66846.0,66825.0,0.25562254]
[1729691991878,0.07486,66835.0,66834.0,0.074857]
[1729691992075,0.07486,66835.0,66834.0,0.136257]
[1729691992474,0.07486,66835.0,66834.0,0.19548563]
[1729691992475,0.24486,66835.0,66834.0,0.19548563]
[1729691993271,0.24486,66835.0,66834.0,0.136257]
[1729691993475,0.24486,66835.0,66834.0,0.19546308]
[1729691994382,0.24486,66835.0,66834.0,0.136257]
[1729691995680,0.24486,66835.0,66834.0,0.1633549]
[1729691998783,0.24486,66835.0,66834.0,0.1019549]
[1729692000283,0.24486,66835.0,66834.0,0.0270979]
[1729692000585,0.24486,66835.0,66828.0,0.04437484]
[1729692000586,0.074866,66831.0,66828.0,0.04437484]
[1729692000773,0.244866,66829.0,66828.0,0.074867]
[1729692001383,0.244866,66829.0,66828.0,0.10186512]
[1729692003985,0.074866,66829.0,66828.0,0.10186512]
[1729692005291,0.135761,66834.0,66833.0,0.074861]
[1729692005483,0.074858,66837.0,66833.0,0.11924364]
[1729692005683,0.074839,66854.0,66845.0,0.074847]